Cogmind - Beta 9.3 --- EXPLORER MODE // 2019.12.31 @ 20:02:59 // Winter2019/RPGLIKE Player: Tob Nok Result: Core destroyed Performance ------------- Evolutions (0) 0 Regions Visited (2) 400 Robots Destroyed (14) 70 Value Destroyed (189) 189 Prototype IDs (2) 40 Alien Tech Used (0) 0 Bonus (0) 0 TOTAL SCORE: 699 Bonus ------- None Cogmind --------- Core Integrity 0/700 Matter 324/350 Energy 300/300 System Corruption 5% Temperature Cool (0) Movement Hovering (60) Location -10/Mines Parts ------- > --- POWER (1) -------- Ion Engine > --- PROPULSION (2) --- Hover Unit > --- UTILITY (2) ------ Structural Scanner ECM Suite > --- WEAPON (2) ------- Light Cannon > --- INVENTORY (0) ---- (None) Peak State ------------ > --- POWER ------------ Ion Engine > --- PROPULSION ------- Aluminum Leg Aluminum Leg > --- UTILITY ---------- Structural Scanner ECM Suite > --- WEAPON ----------- Small Laser Light Assault Rifle > --- INVENTORY -------- (None) [Rating: 7] Favorites ----------- Power Ion Engine Engine Ion Engine Propulsion Aluminum Leg Leg Aluminum Leg Hover Unit Hover Unit Utility ECM Suite Device ECM Suite Weapon Light Assault Rifle Energy Gun Small Laser Ballistic Gun Light Assault Rifle Ballistic Cannon Light Cannon Build | -11 -10 -10 ------- Run | Scr Mat Min Slots Evolved 3 | 3 . . Power . | . . . Propulsion 1 | 1 . . Utility 1 | 1 . . Weapon 1 | 1 . . Parts Attached 11 | 7 4 . Power 1 | 1 . . Engine 1 | 1 . . Core . | . . . Reactor . | . . . Propulsion 5 | 2 3 . Treads . | . . . Leg 3 | 2 1 . Wheel . | . . . Hover 2 | . 2 . Flight . | . . . Utility 2 | 2 . . Device 2 | 2 . . Storage . | . . . Processor . | . . . Hackware . | . . . Protection . | . . . Artifact . | . . . Weapon 3 | 2 1 . Energy Gun 1 | 1 . . Energy Cannon . | . . . Ballistic Gun 1 | 1 . . Ballistic Cannon 1 | . 1 . Launcher . | . . . Special Weapon . | . . . Impact Weapon . | . . . Slashing Weapon . | . . . Piercing Weapon . | . . . Special Melee Weapon . | . . . Unidentified Prototypes . | . . . Parts Lost 1 | . . 1 Power . | . . . Propulsion 1 | . . 1 Utility . | . . . Weapon . | . . . Highest Loss Streak 1 | . . 1 Average Slot Usage (%) 99 | . 100 95 Engine 14 | . 14 14 Leg 5 | . 6 . Hover 22 | . 21 28 Device 28 | . 28 28 Energy Gun 3 | . 3 . Ballistic Gun 13 | . 14 10 Ballistic Cannon 10 | . 10 14 Naked Turns . | . . . Heaviest Build 11 | 9 11 11 Greatest Support 30 | 30 30 22 Greatest Overweight (x) 2 | 2 . . Average Overweight (x) . | . . . Largest Inventory Capacity . | . . . Average Capacity . | . . . Most Carried . | . . . Average Carried . | . . . Final Capacity . | . . . Final Carried . | . . . Class Distribution -------------------- 100% | Hacker-Mutant Dominant Class ---------------- Hacker-Mutant | -10/Materials Hacker-Mutant | -10/Mines Resources | -11 -10 -10 ----------- Run | Scr Mat Min Matter Collected 434 | 226 197 11 Remotely . | . . . Salvage Created 201 | . 125 76 Parts 23 | . 17 6 Haulers Intercepted . | . . . Recyclers Shooed . | . . . Parts Field Recycled . | . . . Retrieved Matter . | . . . Parts Self-Destructed . | . . . Prevented . | . . . Kills | -11 -10 -10 ------- Run | Scr Mat Min Combat Hostiles Destroyed 11 | . 6 5 Melee 1 | . . 1 Guns 6 | . 3 3 Cannons 4 | . 3 1 Classes Destroyed 4 | . 3 1 Watcher 3 | . 3 . Swarmer 6 | . 4 2 Grunt 2 | . 2 . Assembled 3 | . . 3 Best Kill Streak 5 | . 5 3 Combat Bots Only 4 | . 4 3 Max Kills in Single Turn 1 | . 1 1 Gunslinging . | . . . Exploded . | . . . Melee 1 | . . 1 Uniques/NPCs Destroyed . | . . . Combat | -11 -10 -10 -------- Run | Scr Mat Min Damage Taken 901 | . 51 850 Core 728 | . 40 688 Absorbed by Shields . | . . . Redirected to Core 540 | . 34 506 Core Remaining (%) 100 | 100 . . Volleys Fired 40 | . 23 17 Largest 2 | . 2 2 Hottest 60 | . 60 55 Shots Fired 71 | . 45 26 Gun 45 | . 35 10 Cannon 26 | . 10 16 Launcher . | . . . Special . | . . . Kinetic 59 | . 33 26 Thermal 12 | . 12 . Explosive . | . . . Electromagnetic . | . . . Robot Hit Streak 18 | . 17 18 Robot Miss Streak 1 | . 1 1 Penetration Max . | . . . Secondary Targets . | . . . Shots Hit Robots 56 | . 37 19 Core Hits 27 | . 15 12 Critical Hits . | . . . Critical Kills . | . . . Critical Parts Destroyed . | . . . Melee Attacks . | . . . Impact . | . . . Slashing . | . . . Piercing . | . . . Sneak Attacks . | . . . Combat Hostiles . | . . . Follow-up Attacks . | . . . Damage Inflicted 624 | . 383 241 Guns 305 | . 250 55 Cannons 282 | . 128 154 Explosions . | . . . Melee . | . . . Ramming 37 | . 5 32 Kinetic 501 | . 292 209 Thermal 86 | . 86 . Explosive . | . . . Electromagnetic . | . . . Impact . | . . . Slashing . | . . . Piercing . | . . . Highest Corruption 5 | . 2 5 Average Corruption 2 | . 2 2 Corruption Purged . | . . . Effects 1 | . . 1 Weapon Failures 1 | . . 1 Overload Shots . | . . . Overflow Damage . | . . . Projectiles . | . . . Explosions . | . . . Melee . | . . . Knockbacks 3 | . 1 2 Impact . | . . . Kinetic 3 | . 1 2 Secondary . | . . . Self-Inflicted Damage 16 | . 2 14 Shots . | . . . Rammed 13 | . 2 11 Targets Rammed 13 | . 2 11 Kicked . | . . . Crushed . | . . . Highest Temperature 17 | . 3 17 Average Temperature 7 | . 3 9 Received Heat Transfer 126 | . 6 120 Siege Activations . | . . . Robots Corrupted . | . . . Combat Hostiles . | . . . Parts Fried . | . . . Impact Corruptions . | . . . Robots Melted . | . . . Combat Hostiles . | . . . Parts Melted . | . . . Heat Transferred 200 | . 200 . Parts Sabotaged . | . . . Parts Stolen . | . . . Parts Stripped . | . . . Power Chain Reactions . | . . . Missiles Intercepted . | . . . Alert | -11 -10 -10 ------- Run | Scr Mat Min Peak Influence 134 | . 134 99 Average Influence 37 | . 60 80 Maximum Alert Level . | . . . Low Security (%) 100 | 100 100 100 Level 1 . | . . . Level 2 . | . . . Level 3 . | . . . Level 4 . | . . . Level 5 . | . . . High Security . | . . . Max Security . | . . . Squads Dispatched . | . . . Investigation . | . . . Extermination . | . . . Reinforcement . | . . . Assault . | . . . Garrison . | . . . Intercept . | . . . Construction Impeded . | . . . Haulers Reinforced . | . . . Stealth | -11 -10 -10 --------- Run | Scr Mat Min Distress Signals 1 | . 1 . Communications Jammed . | . . . Distress Signals . | . . . Times Spotted 41 | . 17 24 Peak Tracking Total 16 | . 3 16 Tactical Retreats 4 | . 2 2 Traps | -11 -10 -10 ------- Run | Scr Mat Min Traps Triggered . | . . . Indirectly . | . . . Trap Hack Attempts . | . . . Triggered . | . . . Disarmed 3 | . 3 . Reprogrammed . | . . . Reused . | . . . Traps Extracted . | . . . Installed . | . . . Triggered . | . . . Machines | -11 -10 -10 ---------- Run | Scr Mat Min Machines Disabled . | . . . Max in Single Turn . | . . . Machines Sabotaged . | . . . Garrisons Compromised . | . . . Overloaded Fab Kills . | . . . Fab Network Shutdowns . | . . . Hacking | -11 -10 -10 --------- Run | Scr Mat Min Machines Accessed 5 | . 5 . Terminals 4 | . 4 . Fabricators . | . . . Repair Stations . | . . . Recycling Units 1 | . 1 . Scanalyzers . | . . . Garrison Access . | . . . Total Hacks 13 | . 13 . Successful 10 | . 10 . Failed 3 | . 3 . Catastrophic . | . . . Database Lockouts . | . . . Manual . | . . . Terminals 11 | . 11 . Fabricators . | . . . Repair Stations . | . . . Recycling Units 2 | . 2 . Scanalyzers . | . . . Garrison Access . | . . . Terminal Hacks 8 | . 8 . Record 2 | . 2 . Prototype ID Bank 1 | . 1 . Branch Access Points 1 | . 1 . Alert Level 1 | . 1 . Disarm Traps 1 | . 1 . Dispatch Records 1 | . 1 . Assault Status 1 | . 1 . Fabricator Hacks . | . . . Repair Station Hacks . | . . . Recycling Unit Hacks 2 | . 2 . Process 1 | . 1 . Report Inventory 1 | . 1 . Scanalyzer . | . . . Garrison Access Hacks . | . . . Unauthorized Hacks . | . . . Terminals . | . . . Fabricators . | . . . Repair Stations . | . . . Recycling Units . | . . . Scanalyzers . | . . . Garrison Access . | . . . Data Cores Recovered . | . . . Used . | . . . Hacking Detections 3 | . 3 . Full Trace Events . | . . . Feedback Events . | . . . Feedback Blocked . | . . . Robot Schematics Acquired . | . . . Robots Built . | . . . Matter . | . . . Time . | . . . Total Robot Build Rating . | . . . Part Schematics Acquired . | . . . Parts Built . | . . . Matter . | . . . Time . | . . . Total Part Build Rating . | . . . Parts Repaired . | . . . Time . | . . . Parts Recycled . | . . . Recycled Matter 103 | . 103 . Retrieved Matter . | . . . Retrieved Components . | . . . Parts Scanalyzed . | . . . Part Schematics Acquired . | . . . Parts Damaged . | . . . Bothacking | -11 -10 -10 ------------ Run | Scr Mat Min Used RIF Installer . | . . . Robots Hacked . | . . . Non-combat . | . . . Combat . | . . . Robot Hacks Applied . | . . . Relay Couplers Released . | . . . Robots Rewired . | . . . Allies Hacked . | . . . Hacks Repelled . | . . . Allies | -11 -10 -10 -------- Run | Scr Mat Min Total Allies . | . . . Largest Group . | . . . Highest-Rated Group . | . . . Highest-Rated Ally . | . . . Total Orders . | . . . Ally Attacks . | . . . Total Damage . | . . . Kills . | . . . Allies Corrupted . | . . . Allies Melted . | . . . Intel | -11 -10 -10 ------- Run | Scr Mat Min Robot Analysis Total . | . . . Derelict Logs Recovered . | . . . Drone Launches . | . . . Drone Recoveries . | . . . Exploration | -11 -10 -10 ------------- Run | Scr Mat Min Turns Passed 1393 | 553 768 72 Spaces Moved 674 | 210 430 34 Core 21 | 18 3 . Treads . | . . . Legs 278 | 192 86 . Wheels . | . . . Hover 375 | . 341 34 Flight . | . . . Fastest Speed 50 | 50 50 56 Average Speed 83 | 117 68 56 Slowest Speed 150 | 150 120 56 Overloaded Moves . | . . . Propulsion Burnouts . | . . . Robots Hopped . | . . . Cave-ins Triggered . | . . . Exploration Rate (%) 32 | 16 59 21 Regions Visited 2 Branch Regions 1 Pre-discovered Areas . | . . . Known Exits Taken 2 | 1 1 . Unknown Exits Taken . | . . . Scrap Searched . | . . . Spaces Dug . | . . . Terrain Destroyed . | . . . Melee . | . . . Projectile . | . . . AOE . | . . . Actions | -11 -10 -10 --------- Run | Scr Mat Min Total 1435 | 513 861 61 Wait 695 | 297 398 . Move 672 | 209 429 34 Hop . | . . . Pick Up . | . . . Fast Attach 11 | 7 4 . Attach . | . . . Detach . | . . . Swap . | . . . Drop 4 | . 4 . Fire 40 | . 23 17 Melee . | . . . Ram 11 | . 1 10 Kick 1 | . 1 . Crush . | . . . Escape Stasis . | . . . Rewire . | . . . Trap . | . . . Miscellaneous 1 | . 1 . Route ------- -11/Scrapyard -10/Materials -10/Mines History --------- Turn | Location | Event 14 | -11/Scrapyard | Identified exit to Materials 14 | -11/Scrapyard | Discovered exit to Materials (range 15) 37 | -11/Scrapyard | Upgraded with Propulsion slot (x1) 37 | -11/Scrapyard | Upgraded with Utility slot (x1) 37 | -11/Scrapyard | Upgraded with Weapon slot (x1) 554 | -11/Scrapyard | Entered Materials 555 | -10/Materials | Build established: Hacker-Mutant 588 | -10/Materials | Identified exit to Mines 1322 | -10/Materials | Entered Mines 1334 | -10/Mines | Assembled infested the area 1334 | -10/Mines | Reached level 2 1375 | -10/Mines | Core integrity fell below 50% 1387 | -10/Mines | Core integrity fell below 20% 1394 | -10/Mines | Core destroyed Last Messages --------------- 01372_ Destabilizing: System corrupted (+1). 01373_ Slammed into as-14144. 01374_ R-06 Scavenger system corrupted by crushing effect. 01374_ Slammed into as-01836. 01374_ Lgt. Assault Rifle severed. 01374_ R-06 Scavenger destroyed. 01375_ Slammed into as-23787. 01376_ as-23787 destroyed. [Achievement: Fist Fight] 01380_ as-64721 knocked back. 01384_ as-64721 destroyed. 01386_ System corrupted: Lgt. Cannon jammed. 01392_ Hover Unit destroyed. 01392_ System corrupted by crushing effect (+2). 01393_ K-01 Serf destroyed. 01393_ as-65597 suffers critical hit. 01393_ as-65597 destroyed. 01394_ Slammed into as-74477. 01394_ Destabilizing: Core damaged (-21). [Achievement: First Step to Greatness] Map ----- +----------------------------------------------------+ | ?????????????????????????????????????????????????? | | ?????????????????????????????????????????????????? | | ?????????????????????????????????????????????????? | | ?????????????????????????????????????????????????? | | ?????????????????????????????????????????????????? | | ?????????????????????????????????????????????????? | | ???????????????????????????????? ???????????????? | | ???????????????????????????????# ??????????????? | | ???????????????????????????#### ??????????????? | | ??????????????????????????? = ??????????????? | | ??????????????????????????? ! ???????????????# | | ???????????????????????????# ??????????????? | | ???????????????????????????# ???????????????? | | ???????????????????????????# ????????????????? | | ???????????????????????????# ?????????????????? | | ???????????????????????????#= #?????????????????? | | ???????????????????????????#%a#?????????????????? | | ??????????????????????????##= #?????????????????# | | ??????????????????######### % ##?????????????### | | ?????????????????## ## ############?## " | | ????????????????## a = #?# " | | ????????????????# [ % = ### " | | ????????????????# a ! ######## ## | | ????????????????## ###%a# ##??????# ## | | ?????????????????## ##?#a## ##???????# ## | | ??????????????????####??#@## #????????# | | ????????????????????????#a## #????????# | | ????????????????????????# a #????????#### | | ????????????????????????#### #???????????# ### | | ???????????????????????????#= #???????????###?## | | ???????????????????????????#%=#????????????????# | | ???????????????????????????#[*#????????????????## | | ???????????????????????????#%%=??????????????????# | | ???????????????????????????#![ ??????????????????? | | ???????????????????????????#= ??????????????????? | | ???????????????????????????% ??????????????????? | | ???????????????????????????# ??????????????????? | | ???????????????????????????? ??????????????????? | | ????????????????????????????# ??????????????????? | | ?????????????????????????????????????????????????? | | ?????????????????????????????????????????????????? | | ?????????????????????????????????????????????????? | | ?????????????????????????????????????????????????? | | ?????????????????????????????????????????????????? | | ?????????????????????????????????????????????????? | | ?????????????????????????????????????????????????? | | ?????????????????????????????????????????????????? | | ?????????????????????????????????????????????????? | | ?????????????????????????????????????????????????? | | ?????????????????????????????????????????????????? | +----------------------------------------------------+ Best States ------------- Heat Dissipation 37 Energy Generation 20 Energy Capacity 300 Matter Stores 350 Matter Capacity 350 Sight Range 18 Robot Scan Range 2 Terrain Scan Density 210 ECM Strength 1 Resistance: KI 35 Resistance: TH 35 Resistance: EX 35 Resistance: EM 35 Resistance: I 35 Resistance: S 35 Resistance: P 35 Evasion (%) 53 Offensive Hacking 20 Item Schematics ----------------- None Robot Schematics ------------------ None Fabricated ------------ Nothing Alien Tech Used ----------------- None Achievements -------------- First Step to Greatness Fist Fight Challenges ------------ None RPGLIKE | -11 -10 -10 --------- Run | Scr Mat Min Levels Raised 1 | . . 1 XP Earned 7605 | 6000 855 750 XP Spent 6000 | 6000 . . Upgrades 23 | 23 . . Propulsion Slot 1 | 1 . . Utility Slot 1 | 1 . . Weapon Slot 1 | 1 . . Core Integrity 2 | 2 . . Heat Dissipation 2 | 2 . . Energy Generation 2 | 2 . . Energy Storage 1 | 1 . . Matter Storage 1 | 1 . . Mass Support 2 | 2 . . Sight Range 2 | 2 . . Sensor Range 1 | 1 . . Terrain Scan Density 2 | 2 . . Ranged Accuracy 3 | 3 . . KI Damage % 2 | 2 . . Protomatter Created 68 | . 58 10 Integrity Restored 24 | . 24 . Core 24 | . 24 . Protomatter Decayed 100 | . 50 50 Game ------ Seed GaussNeutrinoDeconstructor Manual? 0 Play Time 00:19:32 Cumulative 2.1 hours Start 2019.12.31 @ 19:42:14 End 2019.12.31 @ 20:02:59 Sessions 1 Manual Loads 0 Difficulty Explorer Special Mode Winter2019/RPGLIKE Game No. 16 Rogue 14 Adventurer 0 Explorer 2 Win Type - Total 0 Types 0/0/0/0/0/0/0 Lore% 4 Gallery% 11 Achievement% 7 Wizard Run 0 Options --------- ASCII 0 Keyboard 0 Movement Numpad Keybinds 0 Fullscreen 1 Font 18/SmallcapsGlow Map View 76x50 Tactical HUD 1 Map Filters NONE Filters NONE Steam 1 RUN: eb1e20fe-d9ca-4966-baee-29bd79f4976e